[Event "Women Accentus DAQ Blitz 2022"]
[Site "Biel"]
[Date "2022.07.17"]
[Round "7.3"]
[White "Avilova, Yulia"]
[Black "Moracchini, Margaux"]
[Result "1-0"]
[ECO "E94"]
[WhiteElo "1646"]
[BlackElo "1937"]
[Annotator "TA"]
[PlyCount "101"]
[EventDate "2022.07.17"]
[EventType "tourn"]
[EventCountry "SUI"]
[SourceTitle "playchess.com"]
[Source "ChessBase"]
[SourceQuality "1"]
[TimeControl "180+2"]

{[%evp 20,101,19,-10,27,-14,24,24,29,30,68,52,40,6,24,15,10,20,39,-13,54,-43,-48,-55,-55,-51,-52,-51,-58,-89,-60,-55,-52,-124,-60,-60,0,-325,-60,-278,-265,-499,-449,-1738,364,264,542,532,696,654,756,752,739,672,607,189,392,267,244,271,655,618,610,577,758,773,851,658,668,684,1077,1054,1151,635,29973,29959,29986,29978,29987,29988,29989,29990,29991,29991]} 1. Nf3 {[%emt 0:00:01]} Nf6 {[%emt 0:00:01]} 2. c4 {[%emt 0:00:02]} g6 {[%emt 0:00:01]} 3. d4 {[%emt 0:00:00]} d6 {[%emt 0:00:01]} 4. Nc3 {[%emt 0:00:01]} Bg7 {[%emt 0:00:01]} 5. e4 {[%emt 0:00:01]} O-O {[%emt 0:00:02]} 6. Be2 {[%emt 0:00:01]} e5 {[%emt 0:00:03]} 7. d5 {[%emt 0:00:01]} a5 {[%emt 0:00:10]} 8. O-O {[%emt 0:00:02]} Na6 {[%emt 0:00:01]} 9. Rb1 {[%emt 0:00:03]} Nc5 {[%emt 0:00:08]} 10. Nd2 {[%emt 0:00:05]} Ne8 {[%emt 0:00:10]} 11. a3 {[%emt 0:00:01]} f5 {[%emt 0:00:03] E94: King's Indian: Classical: 6 Be2 e5 7 0-0: Various Black 7th moves.} 12. f3 {[%emt 0:00:01]} (12. b4 $5 {[%cal Rb4c5]} Nxe4 13. Ndxe4 (13. Ncxe4 fxe4 14. Nxe4 Nf6 $11) 13... axb4 14. Bg5 $11 (14. axb4 fxe4 15. Nxe4 Nf6 $11)) 12... Nf6 {[%emt 0:00:19][%cal Be8f6,Bf6h5,Bh5f4][%mdl 32]} 13. b4 {[%emt 0:00:01]} axb4 {[%emt 0:00:01] White has an edge.} 14. axb4 {[%emt 0:00:01]} Ncd7 {[%emt 0:00:05]} 15. Nb3 {[%emt 0:00:03] [#]} Nh5 $146 {[%emt 0:00:19]} ({Predecessor:} 15... b6 16. c5 f4 17. c6 Nb8 18. b5 g5 19. Ra1 Rxa1 20. Nxa1 h5 21. Kf2 g4 {1-0 (35) Yilmaz,E-Schulze Wierling,P Germany 1995}) 16. Be3 {[%emt 0:00:02]} Nf4 {[%emt 0:00:17]} 17. c5 {[%emt 0:00:12]} Qg5 {[%emt 0:00:10][%csl Gf4][%cal Rg5g2] [#]} 18. Bxf4 {[%emt 0:00:23]} exf4 {[%emt 0:00:02]} 19. Nb5 {[%emt 0:00:11]} (19. Nd4 $14) 19... Qd8 {[%emt 0:00:20]} ({Resist} 19... Ra2 20. Nc1 Rxe2 21. Nxe2 fxe4 22. Ned4 (22. cxd6 exf3 23. Rxf3 Ne5 $11) 22... Qxd5 23. fxe4 $16) (19... fxe4 $11 20. Nxc7 {[#]} Nf6 $1 21. fxe4 (21. Nxa8 Bh3 $11) 21... Ra2) 20. c6 {[%emt 0:00:13]} ({Much worse is} 20. cxd6 cxd6 21. Kh1 Nf6 $11) (20. exf5 $14 Rxf5 21. N3d4) 20... bxc6 $1 $15 21. dxc6 {[%emt 0:00:02]} Nb6 {[%emt 0:00:14]} 22. N3d4 {[%emt 0:00:12]} fxe4 {[%emt 0:00:08]} 23. fxe4 {[%emt 0:00:02]} Kh8 {[%emt 0:00:17]} 24. Qb3 {[%emt 0:00:02]} Qe7 {[%emt 0:00:01]} 25. Bf3 {[%emt 0:00:05]} Be5 {[%emt 0:00:02]} 26. Ra1 {[%emt 0:00:18]} (26. Rbd1 $15) 26... Rxa1 {[%emt 0:00:04]} (26... Ba6 $17 {Threatens to win with ...Bxb5.} 27. Rxa6 Rxa6) 27. Rxa1 {[%emt 0:00:00]} g5 {[%emt 0:00:02]} (27... Qf6 $15 28. Rd1 Ba6) 28. Ra7 $2 {[%emt 0:00:04][%mdl 8192]} (28. h3 $1 $11) 28... Qg7 $2 {[%emt 0:00:09]} (28... g4 $19 {And now ...d5 would win.} 29. Qd3 d5 30. exd5 Qxb4 31. Rxc7 (31. Qe4 $2 Nc4 $19) 31... Bxc7 32. Nxc7 Qe1+ 33. Qf1 Qe5) 29. Rxc7 $2 {[%emt 0:00:06]} Bxd4+ $19 {[%emt 0:00:02]} 30. Kf1 $2 {[%emt 0:00:09]} (30. Kh1 Qf6 31. Nxd4 Qxd4 32. Qd1 Qxd1+ 33. Bxd1) 30... Qe5 {[%emt 0:00:01]} 31. Qd3 {[%emt 0:00:26]} (31. Be2 $142 d5 32. Qd3) 31... Be6 $4 {[%emt 0:00:07][%mdl 8192]} 32. Qxd4 $18 {[%emt 0:00:06]} Bc4+ $2 {[%emt 0:00:03]} (32... g4) 33. Be2 {[%emt 0:00:04]} Bxe2+ {[%emt 0:00:12]} 34. Kxe2 {[%emt 0:00:01]} Qxd4 {[%emt 0:00:02]} 35. Nxd4 {[%emt 0:00:01][%mdl 4096] Endgame KRN-KRN} Re8 {[%emt 0:00:05]} 36. Kf3 {[%emt 0:00:04]} Nc4 {[%emt 0:00:08]} 37. Nb3 $2 {[%emt 0:00:10]} (37. Nf5) 37... h5 $2 {[%emt 0:00:01]} (37... Ne5+ 38. Ke2 Nxc6) 38. h3 {[%emt 0:00:02]} Ne5+ {[%emt 0:00:01]} 39. Ke2 {[%emt 0:00:05][%cal Bf3e2,Be2d3,Bd3d4,Bd4e3][%mdl 32]} Nc4 $2 {[%emt 0:00:01]} (39... Nxc6 40. Rxc6 Rxe4+ 41. Kd3 Rxb4) 40. Kd3 {[%emt 0:00:03]} Ne5+ {[%emt 0:00:03]} 41. Kd4 {[%emt 0:00:04]} f3 {[%emt 0:00:01]} 42. gxf3 {[%emt 0:00:03]} Nxf3+ 43. Ke3 {[%emt 0:00:02]} Ne5 {[%emt 0:00:02]} 44. b5 {[%emt 0:00:04][%cal Bb4b5,Bb5b6,Bb6b7][%mdl 32]} Nc4+ {[%emt 0:00:01]} 45. Kd4 {[%emt 0:00:03]} Ne5 {[%emt 0:00:01]} 46. b6 {[%emt 0:00:02]} Nf3+ {[%emt 0:00:03]} 47. Ke3 {[%emt 0:00:01] White mates.} g4 {[%emt 0:00:02]} 48. hxg4 {[%emt 0:00:02]} hxg4 49. b7 {[%emt 0:00:02]} Ne5 {[%emt 0:00:03]} 50. Rc8 {[%emt 0:00:01]} Nc4+ {[%emt 0:00:03]} 51. Kd4 {[%emt 0:00:01] Weighted Error Value: White=0.99/Black=0.75} 1-0

[Event "Women Accentus DAQ Blitz 2022"]
[Site "Biel"]
[Date "2022.07.17"]
[Round "7.4"]
[White "Keymer, Cecilia"]
[Black "Sumarriva Paulin, Laura"]
[Result "0-1"]
[ECO "D27"]
[WhiteElo "1652"]
[BlackElo "1913"]
[Annotator "TA"]
[PlyCount "110"]
[EventDate "2022.07.17"]
[EventType "tourn"]
[EventCountry "SUI"]
[SourceTitle "playchess.com"]
[Source "ChessBase"]
[SourceQuality "1"]
[TimeControl "180+2"]

{[%evp 17,110,23,42,11,8,22,7,5,65,52,53,11,18,9,8,0,1,0,0,-1,0,-12,-8,-13,0,-13,4,14,6,6,9,0,0,0,2,-10,-9,-31,0,-42,-51,-117,-89,-92,-91,-203,-188,-226,-1,-272,-176,-499,-486,-429,-333,-319,-70,-530,-454,-5585,-2589,-5202,-2128,-29976,-29976,-29985,-29986,-29986,-29985,-29985,-29986,-29986,-29987,-29986,-29987,-29987,-29988,-29988,-29989,-29990,-29989,-29989,-29990,-29990,-29991,-29992,-29993,-29993,-29994,-29994,-29994,-29997,-29998,-29998,-29999]} 1. d4 {[%emt 0:00:02]} d5 {[%emt 0:00:01]} 2. c4 {[%emt 0:00:00]} dxc4 {[%emt 0:00:01]} 3. Nf3 {[%emt 0:00:02]} Nf6 {[%emt 0:00:02]} 4. e3 {[%emt 0:00:02]} e6 {[%emt 0:00:01]} 5. Bxc4 {[%emt 0:00:01]} c5 {[%emt 0:00:01]} 6. O-O {[%emt 0:00:02]} Nc6 {[%emt 0:00:01]} 7. a3 {[%emt 0:00:02]} a6 {[%emt 0:00:04]} 8. dxc5 {[%emt 0:00:03]} Bxc5 {[%emt 0:00:02]} 9. Qxd8+ {[%emt 0:00:09]} Kxd8 {[%emt 0:00:02]} 10. Nc3 {[%emt 0:00:03] D27: Queen's Gambit Accepted: Classical main line: 7 e4!? and 7 a4.} b5 {[%emt 0:00:02]} 11. Be2 {[%emt 0:00:05]} Ke7 {[%emt 0:00:03]} 12. b4 {[%emt 0:00:02] The position is equal.} Bb6 {[%emt 0:00:09]} ({Better is} 12... Bd6 $11) 13. Bb2 {[%emt 0:00:07]} Bb7 {[%emt 0:00:01]} 14. Rac1 {[%emt 0:00:09]} Rhd8 {[%emt 0:00:02]} 15. Rfd1 {[%emt 0:00:01]} Rac8 {[%emt 0:00:03] [#]} 16. Bd3 $146 {[%emt 0:00:32]} ({Predecessor:} 16. h3 Bc7 17. Kf1 Bb8 18. Nb1 Ne8 19. Nbd2 f6 20. Nb3 Bd6 21. Nc5 Bxc5 22. Rxd8 Nxd8 23. Rxc5 Rxc5 24. bxc5 {0-1 (60) Petricevic,M (1578)-Karlusic,L (1739) Trogir 2018}) 16... h6 {[%emt 0:00:03]} 17. Ne2 {[%emt 0:00:08]} Rd7 {[%emt 0:00:22]} 18. Bc2 {[%emt 0:00:11]} Rcd8 {[%emt 0:00:03]} 19. Ned4 {[%emt 0:00:13]} Nxd4 {[%emt 0:00:10]} 20. Nxd4 {[%emt 0:00:02]} Ne8 {[%emt 0:00:16]} 21. Bb3 {[%emt 0:00:13]} Bd5 {[%emt 0:00:09]} 22. Bxd5 {[%emt 0:00:07]} Bxd4 {[%emt 0:00:03]} 23. Bxd4 {[%emt 0:00:07]} Rxd5 {[%emt 0:00:02]} 24. Bc5+ {[%emt 0:00:04]} Kf6 {[%emt 0:00:06]} 25. Rxd5 {[%emt 0:00:19]} Rxd5 $11 {[%emt 0:00:02][%mdl 4096] Endgame KRB-KRN} 26. Bd4+ {[%emt 0:00:15]} e5 {[%emt 0:00:23]} 27. Bb2 {[%emt 0:00:06]} Ke7 {[%emt 0:00:06]} 28. g3 {[%emt 0:00:03]} f6 {[%emt 0:00:02]} 29. Rc6 {[%emt 0:00:08]} ({White should try} 29. Bc3 $15) 29... Rd6 {[%emt 0:00:02]} 30. Rxd6 {[%emt 0:00:09]} Nxd6 $17 {[%emt 0:00:01] KB-KN} 31. Kf1 {[%emt 0:00:03]} (31. f3 $17) 31... Nc4 $19 {[%emt 0:00:01]} 32. Bc1 {[%emt 0:00:01]} Kd6 $2 {[%emt 0:00:01]} (32... e4 $1 $19 33. h3 Ke6) 33. Ke2 $2 {[%emt 0:00:01][%mdl 8192]} (33. e4 $1 $11 {and White has nothing to worry.}) 33... Kd5 {[%emt 0:00:08] ...e4 is the strong threat.} 34. Kd3 $2 {[%emt 0:00:02] [#]} (34. f3 {was the crucial defense.}) 34... e4+ $1 {[%emt 0:00:03]} 35. Kc3 {[%emt 0:00:05]} f5 {[%emt 0:00:02]} 36. Kb3 {[%emt 0:00:07]} Ne5 $2 {[%emt 0:00:09]} (36... g5 $19 {aiming for ...g4.} 37. h3 Ne5) 37. a4 $2 {[%emt 0:00:03][%mdl 8192]} (37. Bb2 $15) 37... Nd3 {[%emt 0:00:02][%csl LRc1,LRf2]} 38. axb5 {[%emt 0:00:14]} (38. Bd2 $142 Nxf2 39. axb5 axb5 40. Kc3) 38... Nxc1+ {[%emt 0:00:05] KN-KP} 39. Kb2 {[%emt 0:00:06] [#]} Nd3+ {[%emt 0:00:02]} (39... axb5 $142 $1 40. Kc3 (40. Kxc1 Kc4) 40... Ne2+ 41. Kb3 Ng1) 40. Kc3 {[%emt 0:00:05]} axb5 {[%emt 0:00:02] Black mates.} 41. Kb3 {[%emt 0:00:01]} Nxf2 {[%emt 0:00:02]} 42. Kc3 {[%emt 0:00:01]} Nd3 {[%emt 0:00:02]} 43. Kb3 {[%emt 0:00:02]} Ne5 {[%emt 0:00:02]} 44. Kc3 {[%emt 0:00:02]} Ng4 {[%emt 0:00:02]} 45. Kd2 {[%emt 0:00:03]} Kc4 {[%emt 0:00:01]} 46. h3 {[%emt 0:00:02]} Ne5 {[%emt 0:00:01]} 47. Kc2 {[%emt 0:00:02]} Kxb4 {[%emt 0:00:02] KN-K3P} 48. Kb2 Nd3+ {[%emt 0:00:02]} 49. Kc2 {[%emt 0:00:02]} Kc4 {[%emt 0:00:01]} 50. Kd2 {[%emt 0:00:00]} b4 {[%emt 0:00:02]} 51. g4 {[%emt 0:00:01]} fxg4 {[%emt 0:00:03]} 52. hxg4 {[%emt 0:00:01]} b3 {[%emt 0:00:01]} 53. Kd1 {[%emt 0:00:01]} Kc3 {[%emt 0:00:04]} 54. g5 {[%emt 0:00:03]} b2 {[%emt 0:00:02]} 55. g6 {[%emt 0:00:03]} b1=Q+ {[%emt 0:00:03] Weighted Error Value: White=0.97/Black=0.52} 0-1

[Event "Women Accentus DAQ Blitz 2022"]
[Site "Biel"]
[Date "2022.07.17"]
[Round "8.1"]
[White "Cornileau, Juliette"]
[Black "Zhuang, Yongzhe"]
[Result "1/2-1/2"]
[ECO "D20"]
[WhiteElo "1900"]
[BlackElo "1838"]
[Annotator "TA"]
[PlyCount "108"]
[EventDate "2022.07.17"]
[EventType "tourn"]
[EventCountry "SUI"]
[SourceTitle "playchess.com"]
[Source "ChessBase"]
[SourceQuality "1"]
[TimeControl "180+2"]

{[%evp 9,108,28,25,-93,-74,-112,-59,-83,-54,-68,-75,-83,-41,-47,-27,-27,-29,-42,-18,-53,-49,-55,-40,-89,-44,-143,-57,-90,-22,-66,-4,-9,-8,-18,-10,-73,0,-59,-20,-52,238,-7,0,-16,-23,-60,-60,-137,-81,-122,-66,-162,-97,-103,-31,-23,-33,-35,-42,-149,-145,-362,-362,-637,-637,-609,-612,-620,-597,-588,-566,-491,-391,-511,-163,-878,-679,-764,0,0,0,0,0,0,0,0,0,0,0,0,0,0,0,0,0,0,0,0,0,0,0]} 1. d4 {[%emt 0:00:02]} d5 {[%emt 0:00:01]} 2. c4 {[%emt 0:00:01]} dxc4 {[%emt 0:00:02]} 3. e4 {[%emt 0:00:02]} b5 {[%emt 0:00:04]} 4. a4 {[%emt 0:00:08]} c6 {[%emt 0:00:01]} 5. b3 {[%emt 0:00:42]} e5 {[%emt 0:00:13]} 6. d5 {[%emt 0:00:17] [#] D20: Queen's Gambit Accepted: 3 e3 and 3 e4.} (6. axb5 $11 cxb5 7. Nf3) 6... cxd5 $146 {[%emt 0:00:30]} ({Predecessor:} 6... Qh4 7. Qf3 cxd5 8. axb5 Nf6 9. bxc4 Nxe4 10. Ba3 Bxa3 11. Nxa3 Qe7 12. Nc2 Bb7 13. cxd5 Bxd5 {0-1 (24) Urh,Z (2216)-Efroimski,M (2446) Iasi 2021}) 7. exd5 {[%emt 0:00:04]} Nf6 {[%emt 0:00:01]} (7... Bb4+ $17 8. Bd2 Bc5) 8. bxc4 {[%emt 0:00:14] Black is slightly better.} bxc4 {[%emt 0:00:31]} 9. Bxc4 {[%emt 0:00:01]} Bb4+ {[%emt 0:00:01]} 10. Bd2 {[%emt 0:00:08]} Bxd2+ {[%emt 0:00:40]} 11. Qxd2 {[%emt 0:00:04]} Bb7 {[%emt 0:00:09][%cal Rb7d5]} 12. Nc3 {[%emt 0:00:02]} O-O {[%emt 0:00:03]} 13. Nge2 {[%emt 0:00:30]} Nbd7 {[%emt 0:00:14]} 14. O-O {[%emt 0:00:04]} Nb6 {[%emt 0:00:02][%csl LRc4,LRd5]} 15. Ba2 {[%emt 0:00:34]} Nbxd5 {[%emt 0:00:03]} ({Of course not} 15... Bxd5 16. Nxd5 Nbxd5 17. Rad1 $11) 16. Nxd5 {[%emt 0:00:22]} (16. Rfb1 $15 {might be stronger.} Nxc3 17. Qxc3) 16... Nxd5 {[%emt 0:00:02]} 17. Rab1 {[%emt 0:00:03] [#]} (17. Rfd1 $15 Nf6 18. Qe3) 17... Bc6 {[%emt 0:00:17]} (17... Nf4 $1 $17 18. Rfd1 (18. Qxd8 Nxe2+) 18... Be4) 18. Rfc1 {[%emt 0:00:04] [#]} Ne7 {[%emt 0:00:05]} (18... Nf4 $1 $17 19. Qc2 Bxg2 20. Nxf4 Bf3) 19. Qg5 {[%emt 0:00:07]} Bxa4 {[%emt 0:00:20]} (19... Qd6 $15) 20. Qxe5 $11 {[%emt 0:00:06]} Ng6 {[%emt 0:00:02]} 21. Qe4 {[%emt 0:00:04]} Bd7 {[%emt 0:00:04]} 22. Qf3 {[%emt 0:00:02]} (22. Rd1 $11 {remains equal.}) 22... Qg5 {[%emt 0:00:03]} ({Black should try} 22... a5 $17) 23. Qg3 {[%emt 0:00:02]} (23. Bxf7+ $11 Kh8 24. Qd5) 23... Qa5 {[%emt 0:00:03]} 24. Bc4 {[%emt 0:00:02]} Bf5 $2 {[%emt 0:00:01][%mdl 8192]} (24... Rac8 $15 {keeps the upper hand.} 25. Bb3 Rxc1+ 26. Rxc1 Re8) 25. Ra1 $2 {[%emt 0:00:01]} ({Only move:} 25. Rb5 $18 Qd2 26. Rxf5) 25... Qd8 {[%emt 0:00:03]} 26. Rd1 {[%emt 0:00:01]} Qf6 {[%emt 0:00:02]} 27. Bd5 {[%emt 0:00:02]} Rad8 {[%emt 0:00:02][%cal Od8d5] Strongly threatening ...Rxd5!} 28. Bf3 {[%emt 0:00:02]} (28. Qc3 $15) 28... Rxd1+ {[%emt 0:00:02]} 29. Rxd1 {[%emt 0:00:01]} a5 {[%emt 0:00:02]} (29... Rd8 $17 {[%cal Rd8d1]} 30. Nc3 Be6) 30. Nf4 {[%emt 0:00:03]} (30. Qd6 $15) 30... Nxf4 {[%emt 0:00:04]} (30... Bc2 $19 31. Nxg6 hxg6) 31. Qxf4 $17 {[%emt 0:00:01]} h6 {[%emt 0:00:02]} (31... Rc8 $17 32. h4 Be6 33. Qxf6 gxf6) 32. g4 $15 {[%emt 0:00:02]} Bc2 {[%emt 0:00:03][%csl LRd1,LRf4]} 33. Qxf6 {[%emt 0:00:04]} gxf6 {[%emt 0:00:01][%mdl 4096] Endgame KRB-KRB} 34. Rd2 {[%emt 0:00:01]} (34. Rd7 $15) 34... Bb3 $17 {[%emt 0:00:03] Hoping for ...a4.} 35. Bd5 $2 {[%emt 0:00:05] [#]} (35. Rd6 $17 {is a better defense.}) 35... a4 $1 $19 {[%emt 0:00:02][%cal Ba5a4,Ba4b3][%mdl 32]} 36. Bxb3 $2 {[%emt 0:00:02]} (36. Kg2 Bxd5+ 37. Rxd5) 36... axb3 {[%emt 0:00:01] KR-KR} 37. Rb2 {[%emt 0:00:00]} Rb8 {[%emt 0:00:02]} 38. Kg2 {[%emt 0:00:01]} Kg7 {[%emt 0:00:01]} 39. Kf3 {[%emt 0:00:00]} Kg6 {[%emt 0:00:02]} 40. Kf4 {[%emt 0:00:02]} Rb4+ {[%emt 0:00:02]} 41. Kf3 {[%emt 0:00:02]} h5 $2 {[%emt 0:00:04]} (41... Kg5 {aiming for ...Kh4.} 42. h3 f5 43. gxf5 Kxf5) 42. h3 $2 {[%emt 0:00:01]} (42. gxh5+ Kxh5 43. Ke3) 42... h4 {[%emt 0:00:02]} 43. Ke3 {[%emt 0:00:02]} Kg5 $2 {[%emt 0:00:01]} ({Black should play} 43... f5 $19 44. f3 Kg5) 44. f4+ $1 $11 {[%emt 0:00:02] The position is equal.} Rxf4 {[%emt 0:00:06] White must now prevent ...Rb4.} (44... Kh6 $5 45. f5 Kg7 $11) 45. Rxb3 {[%emt 0:00:00]} Rf1 {[%emt 0:00:03]} 46. Rb5+ $1 {[%emt 0:00:01]} Kg6 {[%emt 0:00:01]} 47. Rh5 {[%emt 0:00:03]} Rg1 {[%emt 0:00:03]} 48. Rxh4 {[%emt 0:00:03]} Rg3+ {[%emt 0:00:02]} 49. Kf4 {[%emt 0:00:01]} Ra3 {[%emt 0:00:02]} 50. Rh8 {[%emt 0:00:04]} Kg7 {[%emt 0:00:02]} 51. Rh5 {[%emt 0:00:02]} Kg6 {[%emt 0:00:02]} 52. Rh8 {[%emt 0:00:05]} Kg7 {[%emt 0:00:01]} 53. Rh5 {[%emt 0:00:04]} Kg6 {[%emt 0:00:01]} 54. Rh8 {[%emt 0:00:04]} Kg7 {[%emt 0:00:01] Whites escaped into a draw.  Weighted Error Value: White=0.62/Black=0.48} 1/2-1/2

[Event "Women Accentus DAQ Blitz 2022"]
[Site "Biel"]
[Date "2022.07.17"]
[Round "8.2"]
[White "Tamrazyan, Gohar"]
[Black "Avilova, Yulia"]
[Result "0-1"]
[ECO "D00"]
[WhiteElo "1916"]
[BlackElo "1646"]
[Annotator "TA"]
[PlyCount "122"]
[EventDate "2022.07.17"]
[EventType "tourn"]
[EventCountry "SUI"]
[SourceTitle "playchess.com"]
[Source "ChessBase"]
[SourceQuality "1"]
[TimeControl "180+2"]

{[%evp 9,122,23,18,-33,-21,-27,-16,-19,69,72,89,58,50,55,69,43,55,36,121,113,120,0,92,77,185,41,137,127,124,136,133,94,125,95,118,42,46,-7,-3,-7,-9,-100,110,0,0,-7,-8,-51,-7,-25,-16,-119,0,0,0,-74,-7,-10,0,0,0,0,0,9,70,19,52,54,83,72,85,78,172,102,120,114,245,0,0,0,0,0,31,30,140,0,0,0,7,0,0,0,0,0,0,0,0,0,0,-12843,-12843,-12845,-12845,-12845,-12846,-12846,-12847,-12847,-12847,-12848,-12848,-29997,-29992,-29992,-29993]} 1. d4 {[%emt 0:00:01]} d5 {[%emt 0:00:01]} 2. Nc3 {[%emt 0:00:01]} e6 {[%emt 0:00:01]} 3. Bf4 {[%emt 0:00:01]} c5 {[%emt 0:00:02]} 4. e4 {[%emt 0:00:03]} cxd4 {[%emt 0:00:13]} 5. Qxd4 {[%emt 0:00:08]} Nc6 {[%emt 0:00:01]} 6. Bb5 {[%emt 0:00:01] D00: 1 d4 d5: Unusual lines.} (6. Qa4 $11 Bb4 7. exd5 exd5 8. Bb5 Bxc3+ 9. bxc3) 6... Bd7 $15 {[%emt 0:00:07]} 7. Bxc6 {[%emt 0:00:05] [#]} Bxc6 $146 {[%emt 0:00:01]} ({Predecessor:} 7... bxc6 8. e5 Rb8 9. Rb1 Qb6 10. Qxb6 axb6 11. Nf3 Ra8 12. a3 c5 13. O-O Bc6 {0-1 (46) Vishwa,V (2034)-Celik,H (2173) Novi Sad 2021}) 8. exd5 {[%emt 0:00:39] The position is equal.} exd5 {[%emt 0:00:02]} (8... Ne7 $1 $11) 9. O-O-O {[%emt 0:00:09] Threatens to win with Nf3.} Nf6 {[%emt 0:00:01]} 10. Nf3 {[%emt 0:00:20]} Be7 {[%emt 0:00:02]} 11. Rhe1 {[%emt 0:00:17][%cal Oe1e7]} O-O {[%emt 0:00:03]} 12. Bg5 {[%emt 0:00:11]} h6 {[%emt 0:00:07]} 13. Bh4 {[%emt 0:00:11]} b6 {[%emt 0:00:12]} ({Black should try} 13... Re8 $14) 14. Ne5 $36 {[%emt 0:00:10][%mdl 2048] White is on the roll.} Bb7 {[%emt 0:00:07]} 15. g4 {[%emt 0:00:08]} (15. Ng4 $16 {[%cal Oe1e7] aiming for Rxe7!} Ne4 16. Bxe7 (16. Nxd5 Bxh4 17. Rxe4 Kh7 $14) 16... Qxe7 17. Nxd5 Qg5+ 18. f4 Qxg4 19. Qxe4 Bxd5 20. Rxd5) 15... Bc5 {[%emt 0:00:01] [#]} (15... Ne4 $1 $11 16. Bxe7 (16. Nxd5 Bxd5 17. Qxd5 Bg5+ 18. Bxg5 Qxg5+ 19. f4 Qxf4+ 20. Kb1 Nf6 $11) 16... Qxe7) 16. Qf4 $1 $16 {[%emt 0:00:02] Hoping for g5.} Qd6 {[%emt 0:00:16]} (16... Be7 $16 {was necessary.}) 17. Bxf6 {[%emt 0:00:19]} (17. Nb5 $18 Qd8 18. Bxf6 Qxf6 19. Qxf6 gxf6 20. Nd7) 17... Qxf6 {[%emt 0:00:02]} (17... gxf6 $14 18. Nd3 Qxf4+ 19. Nxf4 Bxf2) 18. Qxf6 {[%emt 0:00:05]} gxf6 {[%emt 0:00:01]} 19. Nd7 {[%emt 0:00:02]} Rfd8 {[%emt 0:00:13]} 20. Nxf6+ {[%emt 0:00:03]} Kg7 {[%emt 0:00:01]} 21. Nfxd5 {[%emt 0:00:05]} ({Don't play} 21. Ncxd5 Bxf2 22. Re7 Ba6 $14) 21... Bxf2 {[%emt 0:00:07]} 22. Rf1 {[%emt 0:00:08]} (22. Re7 $16 Bxd5 23. Nxd5 (23. Rxd5 Re8 $16)) 22... Bh4 $14 {[%emt 0:00:05]} 23. Nc7 {[%emt 0:00:10]} (23. Kb1 $14) 23... Bg5+ {[%emt 0:00:05] A strong pair of Bishops.} 24. Kb1 {[%emt 0:00:02]} Rac8 {[%emt 0:00:05]} 25. Rxd8 {[%emt 0:00:04]} (25. N7b5 $11) 25... Bxd8 $2 {[%emt 0:00:05]} (25... Rxd8 $17 {and life is bright.} 26. Rf2 Be3) 26. N7d5 {[%emt 0:00:05]} (26. Ne8+ $16 Kg6 27. Nd6) 26... Bg5 $11 {[%emt 0:00:03]} 27. a3 {[%emt 0:00:01]} Rd8 {[%emt 0:00:01]} 28. Nf4 {[%emt 0:00:05]} Ba6 {[%emt 0:00:05][%mdl 1024] Black has compensation.} (28... Rd4 $5 {[%cal Rd4f4]} 29. Nd3 Rxg4 $15) 29. Rf3 {[%emt 0:00:05]} Rd4 {[%emt 0:00:05]} 30. Nce2 {[%emt 0:00:07]} (30. Nh5+ $11 Kf8 31. h3) 30... Re4 {[%emt 0:00:06]} (30... Rd1+ $17 31. Ka2 Bc4+ 32. b3 Bxe2 33. Nxe2 Rd2) 31. Nh5+ {[%emt 0:00:03]} Kf8 {[%emt 0:00:07]} 32. Neg3 {[%emt 0:00:03]} (32. Nef4 $11 {remains equal.}) 32... Re1+ {[%emt 0:00:03]} ({Better is} 32... Rxg4 $17 {...Rh4 is the strong threat.} 33. Nf6 Bb7) 33. Ka2 {[%emt 0:00:01]} Bb7 {[%emt 0:00:05]} 34. Rd3 {[%emt 0:00:04]} Bc8 {[%emt 0:00:10] And now ...Be6+ would win.} 35. h3 {[%emt 0:00:01]} Be6+ {[%emt 0:00:02]} 36. b3 {[%emt 0:00:01]} Rg1 {[%emt 0:00:04]} (36... b5 $11) 37. a4 {[%emt 0:00:02]} ({White should play} 37. Ne4 $14) 37... Rg2 {[%emt 0:00:01]} 38. Kb2 {[%emt 0:00:03]} Bh4 {[%emt 0:00:03]} 39. Kc3 {[%emt 0:00:03]} Be7 {[%emt 0:00:15]} 40. Ne4 {[%emt 0:00:01]} Kg8 {[%emt 0:00:16]} (40... Re2 $16 41. Nhg3 Rg2) 41. Nhf6+ {[%emt 0:00:01]} (41. Nf4 $18 Rh2 42. Nxe6 fxe6 43. Rd7 Rxh3+ 44. Kd4) 41... Kh8 {[%emt 0:00:05]} 42. Nd5 {[%emt 0:00:02]} Bh4 {[%emt 0:00:07]} (42... Bf8 $16 43. Ndf6 Be7) 43. Kb2 $2 {[%emt 0:00:01]} (43. Nf4 $18 Rh2 44. Nxe6) 43... f5 {[%emt 0:00:03]} 44. gxf5 {[%emt 0:00:02]} Bxf5 {[%emt 0:00:01]} 45. Re3 {[%emt 0:00:05]} Bg5 {[%emt 0:00:08]} 46. Nxg5 {[%emt 0:00:02]} hxg5 $14 {[%emt 0:00:01][%mdl 4096] Endgame KRB-KRN} (46... Rxc2+ $11 47. Ka3 hxg5) 47. Re5 {[%emt 0:00:02]} (47. Re8+ $16 Kg7 48. Ne3) 47... Bxc2 $11 {[%emt 0:00:04]} 48. Ka3 {[%emt 0:00:02]} Bd3 {[%emt 0:00:06]} 49. Re7 {[%emt 0:00:02]} Rg3 {[%emt 0:00:04]} 50. Nf6 {[%emt 0:00:01]} Rxh3 {[%emt 0:00:07]} 51. Rxa7 {[%emt 0:00:02]} Bf5 {[%emt 0:00:06]} 52. Rb7 {[%emt 0:00:03]} g4 {[%emt 0:00:06]} 53. Rxb6 {[%emt 0:00:02]} g3 {[%emt 0:00:02]} 54. Nd5 $2 {[%emt 0:00:04][%mdl 8192]} (54. a5 $11) 54... g2 $19 {[%emt 0:00:03]} 55. Rb8+ {[%emt 0:00:04]} Kg7 {[%emt 0:00:05]} 56. Rb7+ {[%emt 0:00:01]} Kh6 {[%emt 0:00:02]} 57. Rb6+ {[%emt 0:00:02]} Kg5 {[%emt 0:00:05]} 58. Rb8 {[%emt 0:00:02]} g1=Q {[%emt 0:00:03]} 59. Rg8+ {[%emt 0:00:01]} Bg6 {[%emt 0:00:01] [#] ( -> ...Qc5+)} 60. Ne7 {[%emt 0:00:07]} Qa1+ {[%emt 0:00:02]} 61. Kb4 {[%emt 0:00:00]} Qe1+ {[%emt 0:00:09] Quite a comeback for Black.  Weighted Error Value: White=0.60/Black=0.36} 0-1